bitfinex/quotes_BTCUSD_20251205
["timestamp","ask_amount","ask_price","bid_price","bid_amount"]
[1764953331661,0.22598446,88502.0,88490.0,0.01370071]
[1764953331833,9.847e-05,88506.0,88503.0,0.23727862]
[1764953332058,9.847e-05,88506.0,88504.0,0.22597848]
[1764953332262,9.847e-05,88506.0,88504.0,0.00161287]
[1764953332474,9.847e-05,88506.0,88504.0,0.22759002]
[1764953332901,9.847e-05,88506.0,88505.0,0.10030287]
[1764953333111,9.847e-05,88506.0,88505.0,0.21655046]
[1764953333324,9.847e-05,88506.0,88505.0,0.32625552]
[1764953333538,9.847e-05,88506.0,88505.0,0.30365793]
[1764953333953,9.847e-05,88506.0,88505.0,0.34253466]
[1764953334187,9.847e-05,88506.0,88505.0,0.32061293]
[1764953334385,9.847e-05,88506.0,88505.0,0.34253466]
[1764953334593,0.01129292,88551.0,88546.0,0.23716292]
[1764953334808,0.22586791,88548.0,88541.0,0.0112942]
[1764953335016,0.23716648,88546.0,88541.0,0.01302621]
[1764953335220,0.23715607,88550.0,88546.0,0.01129356]
[1764953335475,0.23715831,88549.0,88544.0,0.01129382]
[1764953335675,0.23715831,88549.0,88544.0,0.23716863]
[1764953335882,0.0112933,88548.0,88544.0,0.01129382]
[1764953336100,0.22588066,88543.0,88541.0,0.00173201]
[1764953336326,0.22588066,88543.0,88541.0,0.00011914]
[1764953336735,0.32223066,88543.0,88541.0,0.00011914]
[1764953337131,0.24212156,88542.0,88541.0,0.00011914]
[1764953338646,0.66741882,88542.0,88541.0,0.00011914]
[1764953338844,0.56512156,88542.0,88541.0,0.00011914]
[1764953338981,0.56612156,88542.0,88541.0,0.00011914]
[1764953339184,0.54420299,88542.0,88541.0,0.00011914]
[1764953339837,0.56612156,88542.0,88541.0,0.00011914]
[1764953340404,0.67582662,88542.0,88541.0,0.00011914]
[1764953340859,0.56512156,88542.0,88541.0,0.00011914]
[1764953341269,0.54520299,88542.0,88541.0,0.00011914]
[1764953341397,0.56712156,88542.0,88541.0,0.00011914]
[1764953341601,0.56712156,88542.0,88500.0,0.002]
[1764953341602,0.01129905,88503.0,88500.0,0.002]
[1764953341839,0.22598448,88502.0,88500.0,0.00211925]
[1764953342502,0.01129905,88503.0,88500.0,0.00373212]
[1764953342715,0.22598564,88502.0,88500.0,0.00373212]
[1764953342922,0.23727261,88506.0,88502.0,0.01129917]
[1764953343184,0.22598469,88502.0,88500.0,0.00373212]
[1764953343385,0.06201,88501.0,88500.0,0.00373212]
[1764953343599,0.06201,88501.0,88500.0,0.00211925]
[1764953343781,0.24280156,88501.0,88500.0,0.00211925]
[1764953344034,0.24280156,88501.0,88500.0,0.00411925]
[1764953344466,0.12453299,88501.0,88500.0,0.00411925]
[1764953344681,0.54388299,88501.0,88500.0,0.00411925]
[1764953344899,0.56580156,88501.0,88500.0,0.00411925]
[1764953345140,0.0113016,88483.0,88480.0,0.0024]
[1764953345359,0.61158576,88471.0,88470.0,0.0004]
[1764953345558,0.61158576,88471.0,88429.0,0.002]
[1764953345559,0.61161132,88461.0,88439.0,0.01330722]
[1764953345772,0.66785132,88461.0,88460.0,0.00079774]
[1764953345999,0.10827299,88461.0,88460.0,0.00079774]
[1764953346205,0.26663299,88461.0,88460.0,0.00079774]
[1764953346421,0.58963299,88461.0,88460.0,0.00079774]
[1764953346623,0.06252299,88461.0,88460.0,0.00079774]
[1764953347069,0.22088299,88461.0,88460.0,0.00079774]
[1764953347300,0.54388299,88461.0,88460.0,0.00079774]
[1764953347714,0.56580156,88461.0,88460.0,0.00079774]
[1764953347914,0.54388299,88461.0,88460.0,0.00079774]
[1764953348248,0.56580156,88461.0,88460.0,0.00079774]
[1764953348475,0.54588299,88461.0,88460.0,0.00079774]
[1764953348677,0.06452299,88461.0,88460.0,0.00079774]
[1764953348877,0.23735616,88475.0,88471.0,0.01130313]
[1764953349077,0.22608673,88462.0,88460.0,0.00241061]
[1764953349279,0.002,88461.0,88460.0,0.00241061]
[1764953350041,0.22288299,88461.0,88460.0,0.00079774]
[1764953350458,0.24480156,88461.0,88460.0,0.00079774]
[1764953350897,0.86275,88461.0,88460.0,0.22688862]
[1764953351100,0.54913946,88441.0,88423.0,0.01130927]
[1764953351308,0.06252299,88442.0,88440.0,0.00211134]
[1764953351506,0.01126671,88443.0,88441.0,0.00161287]
[1764953352000,0.01126671,88443.0,88440.0,0.00049847]
[1764953352001,0.28866245,88441.0,88440.0,0.00049847]
[1764953352262,0.65806245,88441.0,88440.0,0.00049847]
[1764953352461,0.77633102,88441.0,88440.0,0.00049847]
[1764953352753,0.75341245,88441.0,88440.0,0.00049847]
[1764953352956,0.75341245,88441.0,88410.0,0.0004]
[1764953352957,1.58612056,88440.0,88439.0,0.00055462]
[1764953353195,1.67057489,88440.0,88439.0,0.00067397]
[1764953353396,2.61169058,88430.0,88410.0,0.0004]
[1764953353603,1.09472405,88430.0,88429.0,0.00211937]
[1764953354457,0.54919572,88419.0,88410.0,0.0004]
[1764953354660,0.54919572,88419.0,88418.0,0.00239796]
[1764953354661,0.71403728,88419.0,88418.0,0.00239796]
[1764953354875,0.69211871,88419.0,88418.0,0.00239796]
[1764953355137,0.81038728,88419.0,88418.0,0.00239796]
[1764953355937,0.81238728,88419.0,88418.0,0.00239796]
[1764953356143,0.47066728,88419.0,88418.0,0.00239796]
[1764953356342,0.002,88419.0,88418.0,0.00401083]
[1764953357022,0.22288299,88419.0,88418.0,0.00239796]
[1764953357239,0.56580156,88419.0,88418.0,0.00239796]
[1764953357440,0.67372871,88419.0,88418.0,0.00339796]
[1764953357889,0.05705761,88436.0,88427.0,0.01130876]
[1764953358026,0.04575,88436.0,88433.0,0.01130799]
[1764953358292,0.04575,88436.0,88433.0,0.01292086]
[1764953358498,0.05705761,88436.0,88433.0,0.00161287]
[1764953358717,0.05705761,88436.0,88429.0,0.0113085]
[1764953358718,0.01130556,88452.0,88435.0,0.06172287]
[1764953358931,0.01130595,88449.0,88441.0,0.01130697]
[1764953359134,0.27184772,88458.0,88444.0,0.01130658]
[1764953359340,0.2374329,88447.0,88444.0,0.00161287]
[1764953359558,0.04575,88458.0,88429.0,0.0113085]
[1764953359559,0.23745985,88436.0,88429.0,0.0113085]
[1764953359772,0.0113085,88429.0,88426.0,0.01130889]
[1764953359977,0.323,88444.0,88438.0,0.01130735]
[1764953360194,0.01130671,88443.0,88440.0,0.0113071]
[1764953360391,0.07301299,88456.0,88450.0,0.01130582]
[1764953360392,0.01049,88456.0,88450.0,0.01130582]
[1764953360597,0.04575,88465.0,88460.0,0.01130454]
[1764953360807,0.01130416,88463.0,88460.0,0.00161287]
[1764953361018,0.0113071,88440.0,88427.0,0.01872]
[1764953361229,0.02712966,88463.0,88443.0,0.01130671]
[1764953361230,0.0113062,88447.0,88443.0,0.01130671]
[1764953361434,0.01130518,88455.0,88450.0,0.01130582]
[1764953361638,0.01130556,88452.0,88446.0,0.01130633]
[1764953361844,0.22613051,88445.0,88443.0,0.00161287]
[1764953362065,0.22615199,88437.0,88432.0,0.23746964]
[1764953362275,0.01130697,88441.0,88436.0,0.22615024]
[1764953362503,0.0113071,88440.0,88436.0,0.01130761]
[1764953362722,0.01130722,88439.0,88436.0,0.01130761]
[1764953362970,0.01130722,88439.0,88432.0,0.00201083]
[1764953362971,0.23746416,88435.0,88432.0,0.00201083]
[1764953363167,0.04575,88433.0,88432.0,0.00039796]
[1764953363507,0.01130774,88435.0,88432.0,0.00301083]
[1764953363712,0.23745389,88439.0,88433.0,0.22615991]
[1764953363864,0.22615588,88435.0,88432.0,0.00301083]
[1764953364066,0.01130697,88441.0,88435.0,0.23746159]
[1764953364316,0.05705492,88457.0,88452.0,0.01130556]
[1764953364470,0.22610299,88456.0,88447.0,0.0113062]
[1764953364675,0.23742095,88451.0,88447.0,0.0113062]
[1764953364887,0.09635,88466.0,88457.0,0.01130492]
[1764953364888,0.01130441,88461.0,88457.0,0.01130492]
[1764953365049,0.01130441,88461.0,88447.0,0.00161287]
[1764953365050,0.01130467,88459.0,88455.0,0.22610138]
[1764953365252,0.04575,88448.0,88433.0,0.01130799]
[1764953365459,0.01130761,88436.0,88432.0,0.00039796]
[1764953365668,0.22615922,88434.0,88432.0,0.00039796]
[1764953365944,0.01130684,88442.0,88436.0,0.01130761]
[1764953366207,0.01130774,88435.0,88432.0,0.01331895]
[1764953366411,0.23745804,88437.0,88434.0,0.01130786]
[1764953366644,0.22611535,88451.0,88447.0,0.0113062]
[1764953366854,0.22611215,88452.0,88448.0,0.01130607]
[1764953367059,0.01130505,88456.0,88450.0,0.01130582]
[1764953367233,0.22609667,88458.0,88453.0,0.22610633]
[1764953367462,0.22611135,88452.0,88450.0,0.00161287]
[1764953367666,0.01130543,88453.0,88450.0,0.00161287]
[1764953367797,0.01130492,88457.0,88453.0,0.01130543]
[1764953367998,0.23740712,88456.0,88452.0,0.22610971]
[1764953368204,0.01130543,88453.0,88450.0,0.22772827]
[1764953368401,0.23741357,88454.0,88450.0,0.23903407]
[1764953368606,0.001,88452.0,88451.0,0.23741807]
[1764953369008,0.001,88452.0,88451.0,0.23903094]
[1764953369189,0.22610441,88455.0,88452.0,0.01130556]
[1764953369390,0.016955,88478.0,88454.0,0.01130531]
[1764953369391,0.01130416,88463.0,88454.0,0.01130531]
[1764953369599,0.01130377,88466.0,88454.0,0.00161287]
[1764953369801,0.04681,88476.0,88454.0,0.00161287]
[1764953369802,0.01130492,88457.0,88454.0,0.00161287]
[1764953370002,0.22610148,88456.0,88454.0,0.00161287]
[1764953370208,0.22610148,88456.0,88432.0,0.01170608]
[1764953370209,0.01130722,88439.0,88432.0,0.01170608]
[1764953370498,0.01130722,88439.0,88432.0,0.00039796]
[1764953370499,0.22615843,88434.0,88432.0,0.00039796]
[1764953370677,0.04681,88433.0,88432.0,0.00039796]
[1764953370890,0.26778299,88433.0,88432.0,0.00039796]
[1764953371110,0.59078299,88433.0,88432.0,0.00039796]
[1764953371330,0.06252299,88420.0,88418.0,0.002]
[1764953371517,0.62179341,88419.0,88418.0,0.00211941]
[1764953371692,0.55927042,88419.0,88418.0,0.00211941]
[1764953371872,0.54919572,88419.0,88418.0,0.00211941]
[1764953372082,0.323,88419.0,88418.0,0.00211941]
[1764953372549,0.33308274,88419.0,88418.0,0.00211941]
[1764953373094,0.04681,88433.0,88418.0,0.01504219]
[1764953373305,0.001,88419.0,88418.0,0.00373228]
[1764953374291,0.0111002,88419.0,88418.0,0.00373228]
[1764953374476,0.0101002,88419.0,88418.0,0.00373228]
[1764953374672,0.0113094,88422.0,88418.0,0.01504219]
[1764953374880,0.323,88429.0,88425.0,0.23748894]
[1764953375081,0.01010209,88428.0,88427.0,0.22617526]
[1764953375289,0.01130812,88432.0,88427.0,0.22617526]
[1764953375290,0.23747802,88430.0,88427.0,0.00161287]
[1764953375535,0.01130953,88421.0,88418.0,0.01342932]
[1764953375748,0.001,88419.0,88418.0,0.00373228]
[1764953375978,0.001,88419.0,88418.0,0.00333228]
[1764953376480,0.22619494,88420.0,88418.0,0.00171941]
[1764953376620,0.12935493,88419.0,88418.0,0.00171941]
[1764953376805,0.16855636,88419.0,88418.0,0.00171941]
[1764953377007,0.07122636,88419.0,88418.0,0.00171941]
[1764953377266,0.16855636,88419.0,88418.0,0.00171941]
[1764953377461,0.01010636,88419.0,88418.0,0.00171941]
[1764953377878,0.16855636,88419.0,88418.0,0.00171941]
[1764953378088,0.01010636,88419.0,88418.0,0.00171941]
[1764953378287,0.01110636,88419.0,88418.0,0.00171941]
[1764953378714,0.01010636,88419.0,88418.0,0.00171941]
[1764953379074,0.01110636,88419.0,88418.0,0.00171941]
[1764953379275,0.001,88419.0,88418.0,0.00171941]
[1764953379708,0.49155636,88419.0,88418.0,0.00171941]
[1764953379876,0.57599792,88419.0,88418.0,0.00171941]
[1764953380243,0.57599792,88419.0,88410.0,0.0004]
[1764953380244,0.61173918,88411.0,88410.0,0.0004]
[1764953380442,0.61176477,88401.0,88398.0,0.002]
[1764953380601,0.72820424,88401.0,88400.0,0.00051932]
[1764953380798,1.32266724,88401.0,88400.0,0.00051932]
[1764953380960,0.79040567,88401.0,88400.0,0.00051932]
[1764953381205,0.79039285,88401.0,88400.0,0.00051932]
[1764953381822,0.92201648,88401.0,88400.0,0.00051932]
[1764953382084,0.76711113,88401.0,88400.0,0.00051932]
[1764953382286,0.7049097,88401.0,88400.0,0.00051932]
[1764953382499,0.01010636,88401.0,88400.0,0.00051932]
[1764953382702,0.01010636,88402.0,88400.0,0.00213219]
[1764953382924,0.002,88401.0,88400.0,0.00213219]
[1764953383339,0.002,88401.0,88400.0,0.25540976]
[1764953383556,0.22620431,88416.0,88411.0,0.0113108]
[1764953383751,0.02140571,88415.0,88410.0,0.01131093]
[1764953383998,0.01009542,88415.0,88412.0,0.01131068]
[1764953384204,0.01009542,88415.0,88400.0,0.00213219]
[1764953384205,0.01131183,88403.0,88400.0,0.00213219]
[1764953384421,0.22623992,88402.0,88400.0,0.00213219]
[1764953384878,0.22624141,88402.0,88400.0,0.00213219]
[1764953385098,0.01131106,88409.0,88404.0,0.23754555]
[1764953385371,0.01131106,88409.0,88400.0,0.0134444]
[1764953385372,0.2262411,88402.0,88400.0,0.00513219]
[1764953385572,0.22624047,88402.0,88400.0,0.00513219]
[1764953385779,0.5492399,88402.0,88400.0,0.00351932]
[1764953385985,0.5492399,88402.0,88400.0,0.00051932]
[1764953385986,0.56312416,88401.0,88400.0,0.00051932]
[1764953386513,0.54120559,88401.0,88400.0,0.00051932]
[1764953386709,0.56312416,88401.0,88400.0,0.00051932]
[1764953386922,0.39561559,88401.0,88400.0,0.00051932]
[1764953387290,0.50532065,88401.0,88400.0,0.00051932]
[1764953387434,0.3840226,88401.0,88400.0,0.00051932]
[1764953387812,0.3330926,88401.0,88400.0,0.00051932]
[1764953388229,0.33309146,88401.0,88400.0,0.00051932]
[1764953388696,0.33409146,88401.0,88400.0,0.00051932]
[1764953389118,0.33309146,88401.0,88400.0,0.00051932]
[1764953389331,0.56281302,88401.0,88400.0,0.00051932]
[1764953389533,0.56381302,88401.0,88400.0,0.00051932]
[1764953390311,0.33409146,88401.0,88400.0,0.00051932]
[1764953390470,0.01009146,88401.0,88400.0,0.00051932]
[1764953390668,0.54923233,88405.0,88400.0,0.00213219]
[1764953390871,0.23754135,88406.0,88402.0,0.23754997]
[1764953391072,0.22622709,88407.0,88405.0,0.00161287]
[1764953391275,0.0113108,88411.0,88405.0,0.01292444]
[1764953391482,0.01009006,88412.0,88410.0,0.22621695]
[1764953391685,0.01009006,88413.0,88410.0,0.23914075]
[1764953391913,0.22621425,88412.0,88411.0,0.03897]
[1764953392125,0.01131055,88413.0,88411.0,0.03897]
[1764953392350,0.01009153,88413.0,88411.0,0.26518572]
[1764953392562,0.2261892,88422.0,88418.0,0.01130991]
[1764953392769,0.01009149,88421.0,88418.0,0.23750759]
[1764953392942,0.01131017,88416.0,88412.0,0.01131068]
[1764953393146,0.22621009,88414.0,88412.0,0.00161287]
[1764953393556,0.01131017,88416.0,88412.0,0.00161287]
[1764953393884,0.22620971,88414.0,88412.0,0.00161287]
[1764953394625,0.2262104,88414.0,88412.0,0.00161287]
[1764953394775,0.23751232,88417.0,88412.0,0.00161287]
[1764953394977,0.01131004,88417.0,88412.0,0.00161287]
[1764953395187,0.22617894,88426.0,88412.0,0.00161287]
[1764953395188,0.01130927,88423.0,88412.0,0.10117287]
[1764953395387,0.01131029,88415.0,88412.0,0.10117287]
[1764953395589,0.22621053,88414.0,88412.0,0.00161287]
[1764953396200,0.23751911,88415.0,88412.0,0.00161287]
[1764953396201,0.01131029,88415.0,88412.0,0.00161287]
[1764953396440,0.01131017,88416.0,88412.0,0.00161287]
[1764953396702,0.2262093,88414.0,88412.0,0.05154313]
[1764953396907,0.2262093,88414.0,88412.0,0.00161287]
[1764953397080,0.23751913,88415.0,88412.0,0.00161287]
[1764953397277,0.22620964,88414.0,88412.0,0.00161287]
[1764953398066,0.22618366,88424.0,88417.0,0.01131004]
[1764953398244,0.22619778,88419.0,88417.0,0.00161287]
[1764953398997,0.01130927,88423.0,88419.0,0.01130978]
[1764953399197,0.01130799,88433.0,88422.0,0.06321]
[1764953399400,0.01130825,88431.0,88424.0,0.01130914]
[1764953399602,0.2261844,88424.0,88422.0,0.00161287]
[1764953399798,0.01130863,88428.0,88423.0,0.01130927]
[1764953399997,0.01130786,88434.0,88426.0,0.01130889]
[1764953400214,0.22614554,88439.0,88432.0,0.01130812]
[1764953400426,0.35611891,88453.0,88427.0,0.06321]
[1764953400427,0.01130428,88462.0,88448.0,0.10207]
[1764953400644,0.01013644,88468.0,88466.0,0.22607457]
[1764953400863,0.04523,88488.0,88463.0,0.01130416]
[1764953401077,0.01130211,88479.0,88472.0,0.01130301]
[1764953401286,0.23731673,88490.0,88482.0,0.22603223]
[1764953401499,0.01129969,88498.0,88491.0,0.01130058]
[1764953401712,0.01129969,88498.0,88475.0,0.01130262]
[1764953401713,0.01130147,88484.0,88475.0,0.01130262]
[1764953401922,0.23732664,88486.0,88479.0,0.22604062]
[1764953402133,0.01130096,88488.0,88484.0,0.01130147]
[1764953402341,0.0113002,88494.0,88487.0,0.2260219]
[1764953402556,0.01169765,88498.0,88495.0,0.01130007]
[1764953402788,0.00039796,88498.0,88495.0,0.01130007]
[1764953402994,0.00039796,88498.0,88494.0,0.0113002]
[1764953403202,0.00039796,88498.0,88495.0,0.01130007]
[1764953403407,0.00039796,88498.0,88496.0,0.22599869]
[1764953403610,0.00039796,88498.0,88497.0,0.14505255]
[1764953403888,0.00039796,88498.0,88497.0,0.23865255]
[1764953404106,0.00039796,88498.0,88497.0,0.15842287]
[1764953404311,0.00039796,88498.0,88497.0,0.00161287]
[1764953404735,0.00039796,88498.0,88484.0,0.10490147]
[1764953404736,0.01130032,88493.0,88480.0,0.01130198]
[1764953404943,0.01130224,88478.0,88474.0,0.01130275]
[1764953405157,0.01130122,88486.0,88476.0,0.22604925]
[1764953405375,0.01130122,88486.0,88477.0,0.02560319]
[1764953405376,0.01130198,88480.0,88477.0,0.02560319]
[1764953405584,0.2260781,88465.0,88459.0,0.22609221]
[1764953405790,0.23735613,88475.0,88471.0,0.01130313]
[1764953406008,0.01130198,88480.0,88473.0,0.01130288]
[1764953406213,0.01130224,88478.0,88473.0,0.00161287]
[1764953406418,0.2260546,88475.0,88473.0,0.00161287]
[1764953406642,0.01130224,88478.0,88473.0,0.00161287]
[1764953406838,0.22645161,88475.0,88473.0,0.00161287]
[1764953407461,0.23736449,88472.0,88467.0,0.01130364]
[1764953407689,0.00039796,88475.0,88473.0,0.22605661]
[1764953407919,0.22605875,88473.0,88471.0,0.002]
[1764953408129,0.22607044,88468.0,88467.0,0.00161287]
[1764953408337,0.23740323,88458.0,88454.0,0.01130531]
[1764953408544,0.01130441,88461.0,88458.0,0.0113048]
[1764953408746,0.01130416,88463.0,88460.0,0.01130454]
[1764953408971,0.01130352,88468.0,88462.0,0.01130428]
[1764953409188,0.0113039,88465.0,88460.0,0.01291741]
[1764953409399,0.00039796,88475.0,88472.0,0.22605817]
[1764953409612,0.00039796,88475.0,88474.0,0.03897]
[1764953409823,0.00039796,88475.0,88474.0,0.06209467]
[1764953410042,0.00039796,88475.0,88474.0,0.15569467]
[1764953410681,0.00039796,88475.0,88474.0,0.06209467]
[1764953410891,0.00039796,88475.0,88474.0,0.15569467]
[1764953411538,0.00039796,88475.0,88474.0,0.1776164]
[1764953411761,0.00039796,88475.0,88474.0,0.04058287]
[1764953412198,0.00039796,88475.0,88474.0,0.00161287]
[1764953413272,0.00034496,88475.0,88474.0,0.00161287]
[1764953413917,0.22607555,88466.0,88459.0,0.01130467]
[1764953414131,0.22612923,88445.0,88436.0,0.01130761]
[1764953414351,0.22612923,88445.0,88440.0,0.0113071]
[1764953414560,0.22612923,88445.0,88426.0,0.01130889]
[1764953414762,0.22612923,88445.0,88434.0,0.01130786]
[1764953414981,0.001,88475.0,88464.0,0.01130403]
[1764953415206,0.23737163,88469.0,88464.0,0.00161287]
[1764953415412,0.01130275,88474.0,88467.0,0.2373756]
[1764953415648,0.00039793,88475.0,88472.0,0.22605749]
[1764953415851,0.00039793,88475.0,88472.0,0.01130301]
[1764953416051,0.01170055,88475.0,88472.0,0.01130301]
[1764953416261,0.00039793,88475.0,88473.0,0.22605651]
[1764953416487,0.00039793,88475.0,88473.0,0.22766938]
[1764953418331,0.00039793,88475.0,88474.0,0.09521287]
[1764953418476,0.00039793,88475.0,88474.0,0.13974011]
[1764953418841,0.00039793,88475.0,88474.0,0.20295011]
[1764953420262,0.00039793,88475.0,88474.0,0.02421838]
[1764953420469,0.01130313,88471.0,88463.0,0.01130416]
[1764953420674,0.10979184,88475.0,88463.0,0.01130416]
[1764953420675,0.00039793,88475.0,88474.0,0.03897]
[1764953420898,0.00039793,88475.0,88474.0,0.04058287]
[1764953421413,0.00039793,88475.0,88474.0,0.04458287]
[1764953421624,0.22645048,88475.0,88474.0,0.00561287]
[1764953421831,0.22645048,88475.0,88474.0,0.004]
[1764953422035,0.22645048,88475.0,88453.0,0.22610757]
[1764953422036,0.01130352,88468.0,88463.0,0.22608267]
[1764953422189,0.01130364,88467.0,88464.0,0.01130403]
[1764953422390,0.01130377,88466.0,88458.0,0.0113048]
[1764953422622,0.23738786,88463.0,88460.0,0.28577077]
[1764953422854,0.23738786,88463.0,88453.0,0.02025287]
[1764953422855,0.22610428,88455.0,88453.0,0.00161287]
[1764953423061,0.22610428,88455.0,88439.0,0.01130722]
[1764953423062,0.2261304,88445.0,88439.0,0.01130722]
[1764953423281,0.2261304,88445.0,88435.0,0.01130774]
[1764953423282,0.01130684,88442.0,88420.0,0.59947486]
[1764953423476,0.01130837,88430.0,88424.0,0.11366636]
[1764953423680,0.01130774,88435.0,88431.0,0.01130825]
[1764953423890,0.01130786,88434.0,88431.0,0.01130825]
[1764953424093,0.23746582,88434.0,88431.0,0.01130825]
[1764953424295,0.01130825,88431.0,88427.0,0.23748168]
[1764953424495,0.0117053,88434.0,88428.0,0.01130863]
[1764953424702,0.0117053,88434.0,88432.0,0.22616212]
[1764953424703,0.00039744,88434.0,88432.0,0.22616212]
[1764953424852,0.00039744,88434.0,88433.0,0.04615059]
[1764953425054,0.00039744,88434.0,88433.0,0.0235346]
[1764953425257,0.00039744,88434.0,88433.0,0.00161287]
[1764953426539,0.00039744,88434.0,88433.0,0.00361287]
[1764953426726,0.00039744,88434.0,88433.0,0.00161287]
[1764953426932,0.00139744,88434.0,88433.0,0.05799174]
[1764953427776,0.00139744,88434.0,88433.0,0.01161287]
[1764953428184,0.00039744,88434.0,88433.0,0.00161287]
[1764953428605,0.09556744,88434.0,88416.0,0.01131017]
[1764953428813,0.09556744,88434.0,88425.0,0.01130901]
[1764953428814,0.22617126,88429.0,88425.0,0.01130901]
[1764953429021,0.22617126,88429.0,88421.0,0.01130953]
[1764953429022,0.01130863,88428.0,88421.0,0.01130953]
[1764953429258,0.07,88429.0,88427.0,0.22617497]
[1764953429458,0.23748699,88426.0,88422.0,0.0113094]
[1764953429659,0.23748269,88428.0,88424.0,0.2374914]
[1764953430042,0.0813085,88429.0,88424.0,0.2374914]
[1764953430043,0.07,88429.0,88425.0,0.23748855]
[1764953430250,0.22717334,88428.0,88425.0,0.23748855]
[1764953430455,0.01230863,88428.0,88426.0,0.22617724]
[1764953430656,0.01230863,88428.0,88425.0,0.22618003]
[1764953430856,0.001,88428.0,88427.0,0.22617526]
[1764953431070,0.001,88428.0,88427.0,0.22778813]
[1764953431270,0.001,88428.0,88427.0,0.38500813]
[1764953431471,0.002,88428.0,88427.0,0.38500813]
[1764953431662,0.001,88428.0,88427.0,0.40692986]
[1764953431886,0.002,88428.0,88427.0,0.40692986]
[1764953432225,0.001,88428.0,88427.0,0.40692986]
[1764953432428,0.001,88428.0,88427.0,0.55672986]
[1764953432805,0.00039744,88434.0,88433.0,0.22615991]
[1764953433034,0.00039744,88434.0,88433.0,0.33110451]
[1764953433242,0.00039744,88434.0,88433.0,0.42555451]
[1764953433770,0.00039744,88434.0,88433.0,0.74855451]
[1764953433974,0.01130377,88466.0,88462.0,0.23738922]
[1764953434236,0.0113039,88465.0,88462.0,0.23744224]
[1764953434435,0.016955,88469.0,88466.0,0.22607286]
[1764953434642,0.016955,88469.0,88467.0,0.22607194]
[1764953434852,0.016955,88469.0,88468.0,0.06277]
[1764953435053,0.01130135,88485.0,88481.0,0.23733908]
[1764953435265,0.01130135,88485.0,88481.0,0.23733844]
[1764953435478,0.01130096,88488.0,88481.0,0.23733844]
[1764953435479,0.01130096,88488.0,88484.0,0.23732981]
[1764953435680,0.01130109,88487.0,88483.0,0.23733331]
[1764953435997,0.23731352,88491.0,88488.0,0.01130096]
[1764953436224,0.01130045,88492.0,88489.0,0.01130083]
[1764953436390,0.0113002,88494.0,88490.0,0.22601334]
[1764953436763,0.22599336,88499.0,88490.0,0.22601334]
[1764953436764,0.01129917,88502.0,88498.0,0.22599336]
[1764953436970,0.04888,88513.0,88498.0,0.22599336]
[1764953436971,0.01129892,88504.0,88501.0,0.22598563]
[1764953437177,0.01129879,88505.0,88502.0,0.01129917]
[1764953437379,0.00011932,88505.0,88503.0,0.22598065]
[1764953437601,0.00011932,88505.0,88504.0,0.22597848]
[1764953437730,0.00011932,88505.0,88503.0,0.2629961]
[1764953437937,0.00011932,88505.0,88503.0,0.03701506]
[1764953438131,0.00011932,88505.0,88502.0,0.01129917]
[1764953438343,0.00011932,88505.0,88503.0,0.22597981]
[1764953438531,0.22598614,88501.0,88496.0,0.01129994]
[1764953438748,0.22598614,88501.0,88489.0,0.05016083]
[1764953438749,0.22600141,88496.0,88490.0,0.00161287]
[1764953438955,0.01130122,88486.0,88481.0,0.01130186]
[1764953439175,0.22599522,88498.0,88477.0,0.01864]
[1764953439176,0.22604281,88479.0,88477.0,0.01864]
[1764953439383,0.22604281,88479.0,88473.0,0.00161287]
[1764953439384,0.22605511,88474.0,88473.0,0.00161287]
[1764953439584,0.22605282,88475.0,88473.0,0.00161287]
[1764953439786,0.22605282,88475.0,88467.0,0.22607285]
[1764953439787,0.01130313,88471.0,88468.0,0.01130352]
[1764953439994,0.01130313,88471.0,88465.0,0.0113039]
[1764953439995,0.01130339,88469.0,88465.0,0.22607671]
[1764953440198,0.01130326,88470.0,88466.0,0.23737778]
[1764953440405,0.01130326,88470.0,88466.0,0.23737755]
[1764953440612,0.22607138,88468.0,88466.0,5.299e-05]
[1764953441848,0.22607233,88468.0,88466.0,0.00166586]
[1764953442064,0.22707233,88468.0,88466.0,0.00166586]
[1764953442260,0.22607233,88468.0,88466.0,0.00166586]
[1764953442469,0.22607104,88468.0,88466.0,0.00166586]
[1764953442668,0.002,88468.0,88466.0,0.01296963]
[1764953442865,0.01130326,88470.0,88467.0,0.04877405]
[1764953443072,0.22607299,88467.0,88466.0,0.00166586]
[1764953443277,0.001,88468.0,88466.0,0.01296963]
[1764953443484,0.001,88468.0,88466.0,0.2390439]
[1764953444371,0.22707239,88468.0,88466.0,5.299e-05]
[1764953444523,0.60307553,88467.0,88466.0,5.299e-05]
[1764953444719,0.55426553,88467.0,88466.0,5.299e-05]
[1764953444925,0.51275825,88467.0,88466.0,0.00105299]
[1764953445300,0.51275825,88467.0,88466.0,5.299e-05]
[1764953445498,0.49083968,88467.0,88466.0,5.299e-05]
[1764953445720,0.22707239,88468.0,88466.0,5.299e-05]
[1764953445949,0.22607239,88468.0,88466.0,5.299e-05]
[1764953446175,0.009,88467.0,88466.0,0.00105299]
[1764953446375,0.01130428,88462.0,88450.0,0.01130582]
[1764953446637,0.00011924,88462.0,88461.0,0.01130441]
[1764953446777,0.00011924,88462.0,88461.0,0.05744784]
[1764953446976,0.00011924,88462.0,88461.0,0.01291728]
[1764953447189,0.00011924,88462.0,88461.0,0.03552611]
[1764953447432,0.00011924,88462.0,88461.0,0.13623058]
[1764953448025,0.00011924,88462.0,88461.0,0.11362175]
[1764953448221,0.00011924,88462.0,88461.0,0.11562175]
[1764953448361,0.00011924,88462.0,88461.0,0.23249058]
[1764953448558,0.00111924,88462.0,88461.0,0.24049058]
[1764953448761,0.00111924,88462.0,88461.0,0.30579348]
[1764953449060,0.00111924,88462.0,88461.0,0.21153348]
[1764953449329,0.00111924,88462.0,88461.0,0.32343558]
[1764953449474,0.00011924,88462.0,88461.0,0.31274848]
[1764953449820,0.00111924,88462.0,88461.0,0.32174848]
[1764953450064,0.00111924,88462.0,88461.0,0.32374848]
[1764953450498,0.00111924,88462.0,88461.0,0.32174848]
[1764953450928,0.00111924,88462.0,88461.0,0.32574848]
[1764953451350,0.00011924,88462.0,88461.0,0.29482675]
[1764953451559,0.00211924,88462.0,88461.0,0.33574848]
[1764953451748,0.00211924,88462.0,88461.0,0.33174848]
[1764953451950,0.00211924,88462.0,88461.0,0.31274848]
[1764953452127,0.00211924,88462.0,88461.0,0.29082675]
[1764953452338,0.00411924,88462.0,88461.0,0.33174848]
[1764953452511,0.00011924,88462.0,88461.0,0.23708848]
[1764953452867,0.00211924,88462.0,88461.0,0.35034848]
[1764953453009,0.00211924,88462.0,88461.0,0.33339348]
[1764953453215,0.00011924,88462.0,88461.0,0.31739348]
[1764953453618,0.00011924,88462.0,88461.0,0.00461287]
[1764953453841,0.01130505,88456.0,88453.0,0.01130543]
[1764953454081,0.01130467,88459.0,88454.0,0.22610589]
[1764953454332,0.23750969,88462.0,88454.0,0.01130531]
[1764953454521,0.23739697,88460.0,88456.0,0.23740406]
[1764953454853,0.01130505,88456.0,88449.0,0.01130595]
[1764953455065,0.00011924,88462.0,88430.0,0.75203534]
[1764953455066,0.22608833,88461.0,88445.0,0.22612866]